bitfinex-derivatives/quotes_SOLF0:USTF0_20260126
["timestamp","ask_amount","ask_price","bid_price","bid_amount"]
[1769410152019,3.46776044,122.52,122.46,5.83505813]
[1769410153629,3.46776044,122.52,122.47,5.83505813]
[1769410153827,3.46776044,122.52,122.48,2.56462253]
[1769410154824,3.46776044,122.52,122.47,5.83505813]
[1769410155527,3.46776044,122.52,122.47,3.2704356]
[1769410156322,3.46776044,122.52,122.46,2.56200169]
[1769410156526,3.46776044,122.52,122.45,3.2704356]
[1769410156527,3.46776044,122.51,122.45,3.2704356]
[1769410157224,6.02976213,122.51,122.45,3.2704356]
[1769410157432,3.52360119,122.5,122.45,3.2704356]
[1769410157927,3.52360119,122.5,122.43,5.88944304]
[1769410161330,3.52360119,122.5,122.44,3.32744135]
[1769410161530,3.52360119,122.5,122.44,5.88944304]
[1769410163334,3.52360119,122.49,122.44,3.32744135]
[1769410163632,3.52360119,122.49,122.43,2.56200169]
[1769410164826,3.52360119,122.48,122.42,13.25094304]
[1769410165835,3.52360119,122.48,122.42,10.68894135]
[1769410166029,3.52360119,122.48,122.43,2.56200169]
[1769410166430,3.52360119,122.48,122.43,5.88944304]
[1769410171648,3.52360119,122.5,122.45,5.88944304]
[1769410172646,3.52360119,122.5,122.46,2.56200169]
[1769410173148,3.52360119,122.51,122.47,2.56200169]
[1769410173347,3.52360119,122.51,122.46,5.88944304]
[1769410175238,3.52360119,122.51,122.46,3.32744135]
[1769410177050,3.52360119,122.51,122.47,2.56200169]
[1769410177547,3.52360119,122.51,122.46,5.88944304]
[1769410178851,3.52360119,122.51,122.46,3.32744135]
[1769410179153,3.52360119,122.51,122.44,3.40544953]
[1769410179154,6.04023933,122.5,122.44,3.40544953]
[1769410179542,3.47823764,122.49,122.44,3.40544953]
[1769410179749,3.47823764,122.48,122.43,7.3609]
[1769410180354,6.04023933,122.48,122.43,7.3609]
[1769410180649,6.04023933,122.48,122.43,10.76634953]
[1769410182152,6.04023933,122.51,122.45,3.40544953]
[1769410182550,3.47823764,122.5,122.45,3.40544953]
[1769410182951,3.47823764,122.5,122.4,755.07379834]
[1769410182952,224.77097888,122.56,122.49,3.40544953]
[1769410183148,227.33298057,122.56,122.5,3.40544953]
[1769410183348,224.77097888,122.56,122.5,5.96745122]
[1769410183849,224.77097888,122.56,122.51,5.96745122]
[1769410184553,3.47823764,122.56,122.51,5.96745122]
[1769410184750,3.47823764,122.56,122.51,3.40544953]
[1769410187654,3.47823764,122.56,122.49,5.96745122]
[1769410188252,3.47823764,122.56,122.5,3.40544953]
[1769410188848,3.47823764,122.56,122.5,5.96745122]
[1769410190255,3.47823764,122.56,122.51,3.40544953]
[1769410190459,3.47823764,122.58,122.52,2.56200169]
[1769410190661,3.47823764,122.58,122.52,5.96745122]
[1769410193355,3.47823764,122.58,122.52,3.40544953]
[1769410195059,3.47823764,122.58,122.53,5.96745122]
[1769410195358,206.48023933,122.6,122.54,3.40544953]
[1769410195548,206.48023933,122.6,122.54,5.96745122]
[1769410195549,3.47823764,122.6,122.54,5.96745122]
[1769410196657,3.47823764,122.6,122.54,3.40544953]
[1769410198463,3.47823764,122.59,122.54,3.40544953]
[1769410200554,6.04023933,122.61,122.54,3.40544953]
[1769410201463,3.47823764,122.61,122.56,5.96745122]
[1769410201663,3.47823764,122.61,122.57,2.56200169]
[1769410203865,3.31687388,122.63,122.58,2.56200169]
[1769410204568,3.31687388,122.63,122.59,2.56200169]
[1769410205267,3.31687388,122.63,122.58,5.90233894]
[1769410206567,5.87887557,122.63,122.58,3.34033725]
[1769410207168,5.87887557,122.66,122.59,3.34033725]
[1769410207367,2.56200169,122.65,122.59,3.34033725]
[1769410207966,3.31687388,122.66,122.6,3.34033725]
[1769410208169,3.31687388,122.66,122.61,3.34033725]
[1769410211173,5.87887557,122.66,122.61,3.34033725]
[1769410212872,3.31687388,122.66,122.61,3.34033725]
[1769410215466,2.56200169,122.67,122.61,3.34033725]
[1769410215672,3.31687388,122.66,122.61,3.34033725]
[1769410216273,5.8726985,122.66,122.61,3.34033725]
[1769410218783,3.31687388,122.66,122.61,3.34033725]
[1769410221781,5.8726985,122.66,122.61,3.34033725]
[1769410222185,3.31687388,122.66,122.61,3.34033725]
[1769410223478,3.38196299,122.68,122.62,3.1088943]
[1769410223671,5.93778761,122.68,122.62,3.1088943]
[1769410224476,2.55582462,122.67,122.62,3.1088943]
[1769410224679,5.93778761,122.65,122.6,3.1088943]
[1769410224875,3.38196299,122.65,122.6,3.1088943]
[1769410226383,5.93778761,122.67,122.61,3.1088943]
[1769410227181,5.93778761,122.67,122.61,10.4591943]
[1769410227379,3.38196299,122.66,122.61,3.1088943]
[1769410227577,5.93778761,122.66,122.61,3.1088943]
[1769410228179,5.93778761,122.66,122.59,2.55582462]
[1769410228384,5.93778761,122.65,122.59,10.4601943]
[1769410228777,5.93778761,122.65,122.6,3.1088943]
[1769410229183,3.38196299,122.68,122.62,5.66471892]
[1769410229383,3.38196299,122.68,122.62,3.1088943]
[1769410229785,5.93778761,122.68,122.62,3.1088943]
[1769410229985,5.93778761,122.68,122.62,10.4585943]
[1769410230577,2.55582462,122.69,122.63,10.4579943]
[1769410230780,3.38196299,122.7,122.64,3.1088943]
[1769410231486,3.38196299,122.7,122.64,10.4574943]
[1769410232287,3.38196299,122.72,122.65,3.1088943]
[1769410232484,2.55582462,122.71,122.65,5.66471892]
[1769410232686,5.93778761,122.72,122.65,5.66471892]
[1769410232991,2.55582462,122.71,122.65,3.1088943]
[1769410234193,5.93207964,122.71,122.65,3.1088943]
[1769410234893,5.93207964,122.71,122.65,10.4568943]
[1769410236695,5.93207964,122.71,122.65,3.1088943]
[1769410236895,3.37625502,122.69,122.63,12.98233138]
[1769410237096,3.37625502,122.69,122.63,10.42650676]
[1769410237298,3.37625502,122.69,122.63,3.07750676]
[1769410237499,3.37625502,122.69,122.64,3.07750676]
[1769410238199,2.55582462,122.7,122.64,3.07750676]
[1769410238799,5.93207964,122.71,122.64,3.07750676]
[1769410239098,5.93207964,122.71,122.64,10.42600676]
[1769410240899,3.37625502,122.7,122.64,10.42600676]
[1769410241496,5.93207964,122.7,122.64,10.42600676]
[1769410245710,5.93207964,122.69,122.64,3.07750676]
[1769410246001,5.93207964,122.68,122.62,10.42730676]
[1769410246201,3.37625502,122.67,122.62,10.42730676]
[1769410247210,2.55582462,122.68,122.62,10.42730676]
[1769410248510,5.93207964,122.69,122.62,10.42730676]
[1769410248711,5.93207964,122.69,122.63,3.07750676]
[1769410249708,2.55582462,122.68,122.63,3.07750676]
[1769410251211,3.37625502,122.69,122.63,10.42660676]
[1769410251412,5.93207964,122.69,122.63,10.42660676]
[1769410253314,3.37625502,122.69,122.63,10.42660676]
[1769410253919,5.93207964,122.69,122.63,10.42660676]
[1769410257122,3.37625502,122.69,122.64,3.07750676]
[1769410258309,5.93207964,122.68,122.63,7.3491]
[1769410258921,3.37625502,122.68,122.63,7.3491]
[1769410259510,0.05618576,122.67,122.64,0.05745024]
[1769410262529,0.05618576,122.67,122.64,3.134957]
[1769410263920,0.05618576,122.67,122.64,10.483557]
[1769410267424,3.52128876,122.72,122.66,3.31509014]
[1769410267624,2.55591338,122.74,122.67,5.87091476]
[1769410268126,2.55591338,122.74,122.68,3.31509014]
[1769410268627,2.55591338,122.74,122.68,10.66109014]
[1769410268927,2.55591338,122.74,122.7,0.05589509]
[1769410269132,8.876e-05,122.74,122.7,0.05589509]
[1769410269816,2.55591338,122.74,122.7,0.05589509]
[1769410270326,8.876e-05,122.74,122.7,0.05589509]
[1769410271124,2.55582462,122.76,122.7,0.05589509]
[1769410271325,2.55582462,122.76,122.7,3.37098523]
[1769410271830,2.55582462,122.76,122.7,10.65999014]
[1769410272130,2.55582462,122.76,122.72,0.05687466]
[1769410273331,6.07711338,122.75,122.72,0.05687466]
[1769410277632,6.07370431,122.75,122.72,0.05687466]
[1769410277932,2.55241555,122.74,122.68,13.19774856]
[1769410278133,2.55241555,122.74,122.68,10.64533301]
[1769410278327,3.52128876,122.75,122.68,13.19774856]
[1769410278328,6.07370431,122.75,122.68,13.19774856]
[1769410282934,7.3412,122.77,122.69,3.29933301]
[1769410283136,5.93318002,122.77,122.71,3.29933301]
[1769410284424,5.93318002,122.76,122.71,3.29933301]
[1769410286439,3.38076447,122.76,122.71,3.29933301]
[1769410291049,5.93318002,122.76,122.71,3.29933301]
[1769410292242,3.38076447,122.75,122.69,5.85174856]
[1769410292450,3.38076447,122.74,122.69,3.29933301]
[1769410292648,3.38076447,122.74,122.72,0.05345202]
[1769410297250,3.38076447,122.74,122.69,3.29933301]
[1769410297647,3.43338017,122.74,122.69,3.29933301]
[1769410297844,5.98579572,122.74,122.69,3.29933301]
[1769410298045,6.09360314,122.73,122.67,3.50940332]
[1769410298446,3.54118759,122.73,122.67,3.50940332]
[1769410299046,0.05296573,122.71,122.68,3.50940332]
[1769410299247,3.54118759,122.73,122.68,3.50940332]
[1769410299553,3.54118759,122.73,122.69,0.05177138]
[1769410299852,2.55241555,122.74,122.69,3.5611747]
[1769410300054,6.09360314,122.74,122.69,3.5611747]
[1769410302456,3.54118759,122.74,122.69,3.5611747]
[1769410302957,3.54118759,122.74,122.69,13.45909025]
[1769410304960,0.05795357,122.73,122.69,13.45909025]
[1769410306460,0.05795357,122.73,122.69,10.9066747]
[1769410306655,0.05795357,122.73,122.69,3.5611747]
[1769410306860,3.59914116,122.73,122.69,0.05177138]
[1769410311267,3.59914116,122.73,122.67,10.85600332]
[1769410311268,3.54118759,122.72,122.67,10.85600332]
[1769410311568,3.54118759,122.71,122.65,10.85710332]
[1769410312566,3.54118759,122.71,122.66,7.3475]
[1769410312869,0.05307942,122.69,122.66,10.85690332]
[1769410313371,3.54118759,122.71,122.66,10.85690332]
[1769410313571,3.54118759,122.71,122.66,10.908922]
[1769410313763,3.54118759,122.74,122.68,3.50940332]
[1769410314669,3.54118759,122.74,122.7,0.05535947]
[1769410319672,3.54118759,122.72,122.66,10.85650332]
[1769410319874,3.54118759,122.72,122.66,3.50940332]
[1769410321078,0.0569031,122.7,122.67,7.3468]
[1769410321274,0.0569031,122.7,122.64,6.06181887]
[1769410321476,3.54118759,122.69,122.64,10.85800332]
[1769410322480,2.60931865,122.7,122.64,10.85800332]
[1769410322677,3.54118759,122.69,122.64,3.50940332]
[1769410322877,6.09360314,122.67,122.6,6.06181887]
[1769410323083,6.09360314,122.67,122.61,3.50940332]
[1769410323572,3.54118759,122.67,122.62,3.37581819]
[1769410324280,3.54118759,122.67,122.63,0.05178318]
[1769410325486,6.09717475,122.69,122.63,3.42760137]
[1769410325981,6.09717475,122.69,122.63,3.37581819]
[1769410326481,6.09717475,122.69,122.65,0.05430125]
[1769410328377,3.5447592,122.71,122.65,3.43011944]
[1769410328684,6.09717475,122.71,122.65,3.43011944]
[1769410330884,2.55241555,122.7,122.65,3.43011944]
[1769410332378,2.55241555,122.7,122.65,10.77801944]
[1769410332583,3.5447592,122.71,122.66,3.37581819]
[1769410332778,3.5447592,122.73,122.67,7.3466]
[1769410333085,6.09717475,122.73,122.67,10.72241819]
[1769410333782,6.09717475,122.73,122.69,0.05342455]
[1769410336280,3.5447592,122.73,122.69,0.05342455]
[1769410337182,6.09717475,122.73,122.69,0.05342455]
[1769410337382,2.55241555,122.74,122.69,0.05342455]
[1769410337589,3.52529713,122.74,122.69,0.05342455]
[1769410340091,6.07771819,122.74,122.69,0.05342455]
[1769410340891,3.52529713,122.74,122.69,3.42135147]
[1769410341593,3.52529713,122.74,122.7,2.55242106]
[1769410341890,3.52529713,122.74,122.7,9.89732106]
[1769410342888,3.52529713,122.74,122.7,7.3449]
[1769410344589,2.55242106,122.77,122.7,10.71282692]
[1769410344789,2.55242106,122.77,122.7,13.26524798]
[1769410345694,2.55242106,122.77,122.72,0.05476731]
[1769410346495,3.52529713,122.76,122.72,0.05476731]
[1769410347002,6.07771819,122.76,122.72,0.05476731]
[1769410348899,0.06214191,122.75,122.72,0.05476731]
[1769410349397,3.58743904,122.75,122.72,0.05476731]
[1769410350794,3.58743904,122.75,122.7,10.71282692]
[1769410354509,3.58743904,122.75,122.7,3.36792692]
[1769410354696,3.45510917,122.74,122.68,10.82703183]
[1769410354897,6.00753023,122.74,122.68,10.82703183]
[1769410355692,0.06151406,122.72,122.68,10.82703183]
[1769410357798,10.79620917,122.77,122.69,3.48083183]
[1769410358101,13.34863023,122.77,122.7,3.48083183]
[1769410358296,3.45510917,122.76,122.7,3.48083183]
[1769410358801,6.00753023,122.75,122.7,3.48083183]
[1769410359198,6.00753023,122.75,122.72,0.05994859]
[1769410359503,6.00753023,122.75,122.7,3.48083183]
[1769410359706,0.061831,122.74,122.7,3.48083183]
[1769410360004,3.51694017,122.74,122.68,3.48083183]
[1769410360893,3.45510917,122.71,122.65,7.3479]
[1769410361096,6.00753023,122.71,122.65,7.3479]
[1769410361299,3.45510917,122.7,122.64,3.48083183]
[1769410361607,6.00753023,122.7,122.64,3.48083183]
[1769410361901,0.05569823,122.69,122.64,3.48083183]
[1769410362097,0.05569823,122.69,122.64,10.82943183]
[1769410365906,2.60811929,122.69,122.64,10.82943183]
[1769410366804,2.55242106,122.68,122.64,3.48083183]
[1769410369398,6.06322846,122.69,122.64,3.48083183]
[1769410373711,2.55242106,122.68,122.64,3.48083183]
[1769410374112,6.00753023,122.68,122.62,3.48083183]
[1769410374305,6.00753023,122.67,122.62,3.48083183]
[1769410374505,2.55242106,122.66,122.62,3.48083183]
[1769410375012,0.05379722,122.65,122.62,3.48083183]
[1769410375414,6.00753023,122.67,122.62,3.48083183]
[1769410377717,6.00753023,122.67,122.63,0.0545487]
[1769410380115,2.55242106,122.66,122.63,0.0545487]
[1769410380522,6.00753023,122.64,122.59,286.4316]
[1769410380724,6.00753023,122.63,122.58,3.48083183]
[1769410380919,2.55242106,122.62,122.58,3.48083183]
[1769410381421,3.45510917,122.62,122.56,28.17011685]
[1769410381621,6.00753023,122.62,122.56,28.17011685]
[1769410382116,6.00753023,122.62,122.56,3.48083183]
[1769410382423,0.05215557,122.6,122.56,3.48083183]
[1769410383023,0.05215557,122.6,122.56,10.83413183]
[1769410384222,6.00753023,122.62,122.57,3.28778305]
[1769410384223,2.55242106,122.62,122.57,3.28778305]
[1769410384531,6.10915892,122.66,122.6,3.28778305]
[1769410384826,3.55673786,122.66,122.61,3.28778305]
[1769410385124,6.10915892,122.68,122.61,5.84020411]
[1769410385426,3.55673786,122.67,122.61,5.84020411]
[1769410385818,6.10915892,122.67,122.63,0.05292796]
[1769410387627,3.55673786,122.67,122.63,0.05292796]
[1769410388828,3.55673786,122.65,122.6,7.3508]
[1769410389027,6.10915892,122.65,122.6,7.3508]
[1769410389329,6.10915892,122.65,122.6,10.63858305]
[1769410389533,6.10915892,122.65,122.6,7.3508]
[1769410389724,6.10915892,122.64,122.58,10.63978305]
[1769410390623,0.05906313,122.62,122.58,10.63978305]
[1769410394129,2.61148419,122.62,122.56,10.64088305]
[1769410397332,6.12277097,122.61,122.56,10.64088305]
[1769410399737,6.12860393,122.61,122.56,10.64088305]
[1769410400440,2.55825402,122.59,122.54,336.02441787]
[1769410400629,6.12860393,122.6,122.55,3.23001787]
[1769410401233,3.57034991,122.6,122.55,3.23001787]
[1769410401430,0.06150453,122.59,122.55,3.23001787]
[1769410402231,2.55825402,122.63,122.57,3.23001787]
[1769410402436,6.12860393,122.64,122.58,3.23001787]
[1769410403638,6.12860393,122.64,122.6,0.05816551]
[1769410404038,2.55825402,122.63,122.6,0.05816551]
[1769410404237,6.12860393,122.63,122.6,0.05816551]
[1769410404732,2.55825402,122.62,122.58,3.23001787]
[1769410405328,6.12860393,122.61,122.56,3.23001787]
[1769410405533,2.55825402,122.6,122.56,3.23001787]
[1769410405734,6.12860393,122.61,122.56,3.23001787]
[1769410406438,0.05590836,122.6,122.56,3.23001787]
[1769410410040,0.05590836,122.6,122.56,10.58341787]
[1769410410834,2.61416238,122.6,122.56,3.23001787]
[1769410411034,2.61416238,122.6,122.54,10.58451787]
[1769410411531,2.61416238,122.6,122.55,3.23001787]
[1769410412741,0.05590836,122.6,122.55,3.23001787]
[1769410414546,2.61416238,122.6,122.55,3.23001787]
[1769410415037,6.12828103,122.6,122.55,3.23001787]
[1769410416142,6.12828103,122.6,122.53,27.12290969]
[1769410416143,2.55825402,122.59,122.53,3.48905325]
[1769410416447,6.07237267,122.59,122.53,3.48905325]
[1769410417044,0.06134972,122.57,122.53,3.48905325]
[1769410418046,0.06134972,122.57,122.53,10.84425325]
[1769410418245,0.06134972,122.57,122.54,3.48905325]
[1769410418940,0.06134972,122.57,122.53,7.3552]
[1769410419146,0.06134972,122.57,122.53,10.84425325]
[1769410420746,0.06134972,122.57,122.54,3.48905325]
[1769410425645,0.06134972,122.57,122.53,9.91345402]
[1769410426146,0.06134972,122.57,122.52,329.06905325]
[1769410426746,0.06134972,122.57,122.52,3.48905325]
[1769410427140,3.57546837,122.57,122.52,3.48905325]
[1769410434256,0.06134972,122.57,122.52,13.40310727]
[1769410434756,0.06134972,122.57,122.53,6.04730727]
[1769410440565,3.57546837,122.57,122.51,3.48905325]
[1769410440865,3.57546837,122.57,122.52,3.48905325]
[1769410441063,3.51411865,122.57,122.52,3.48905325]
[1769410441554,0.05403215,122.56,122.52,3.48905325]
[1769410441958,3.5681508,122.56,122.51,2.55825402]
[1769410442160,3.5681508,122.56,122.51,6.04730727]
[1769410442374,3.5681508,122.56,122.51,3.48905325]
[1769410443159,3.51411865,122.55,122.49,331.70730727]
[1769410443360,3.51411865,122.55,122.5,3.29195217]
[1769410443760,3.51411865,122.55,122.5,5.85020619]
[1769410444164,0.05673384,122.54,122.5,3.29195217]
[1769410444674,0.05673384,122.54,122.48,13.20820619]
[1769410446273,3.44800846,122.53,122.48,3.29195217]
[1769410447070,6.00626248,122.53,122.48,3.29195217]
[1769410449071,6.00626248,122.53,122.46,3.29195217]
[1769410449570,6.00626248,122.52,122.46,3.29195217]
[1769410449972,0.0514947,122.51,122.46,3.29195217]
[1769410450177,6.05775718,122.51,122.46,3.29195217]
[1769410450588,6.05775718,122.51,122.44,10.65225217]
[1769410450767,6.05775718,122.51,122.44,3.29195217]
[1769410451279,3.44800846,122.48,122.42,3.29195217]
[1769410451473,3.44800846,122.48,122.42,5.85020619]
[1769410451674,6.00626248,122.48,122.42,3.29195217]
[1769410452375,0.05507454,122.46,122.42,3.29195217]
[1769410453272,2.61332856,122.46,122.42,3.29195217]
[1769410453483,2.61332856,122.46,122.4,3.29195217]
[1769410455178,6.00626248,122.45,122.4,3.29195217]
[1769410456986,3.44800846,122.45,122.4,3.29195217]
[1769410459681,3.44800846,122.45,122.4,5.85659397]
[1769410461686,3.44800846,122.45,122.4,3.29195217]
[1769410477996,3.44800846,122.45,122.4,5.85659397]
[1769410479100,0.05507454,122.46,122.41,3.45249644]
[1769410479802,0.05507454,122.46,122.41,6.01713824]
[1769410480400,3.5697716,122.46,122.41,6.01713824]
[1769410481598,0.05507454,122.46,122.42,3.45249644]
[1769410485906,2.61971634,122.46,122.42,3.45249644]
[1769410487002,0.05507454,122.46,122.42,3.45249644]
[1769410491910,0.05507454,122.46,122.42,6.01713824]
[1769410492105,188.6176,122.5,122.44,3.45249644]
[1769410492106,192.13229706,122.5,122.44,3.45249644]
[1769410492310,194.69693886,122.5,122.44,3.45249644]
[1769410492500,3.51469706,122.49,122.44,3.45249644]
[1769410492706,3.51469706,122.48,122.43,0.05231088]
[1769410492902,3.51469706,122.48,122.42,3.45249644]
[1769410492903,6.07933886,122.48,122.42,3.45249644]
[1769410494113,6.07933886,122.47,122.42,3.45249644]
[1769410494318,3.51469706,122.45,122.4,3.45249644]
[1769410495815,2.5646418,122.44,122.4,3.45249644]
[1769410496021,6.07933886,122.45,122.4,3.45249644]
[1769410498918,3.51469706,122.47,122.41,3.45249644]
[1769410499121,2.5646418,122.48,122.42,3.45249644]
[1769410500015,8.93658509,122.48,122.42,3.45249644]
[1769410502515,2.5646418,122.48,122.42,3.45249644]
[1769410504323,5.8075266,122.48,122.42,3.45249644]
[1769410511433,13.1661266,122.48,122.42,3.45249644]
[1769410511628,2.5646418,122.47,122.42,3.45249644]
[1769410511820,5.8075266,122.47,122.42,3.45249644]
[1769410512127,5.8075266,122.45,122.4,3.29512523]
[1769410512327,2.5646418,122.46,122.4,3.29512523]
[1769410512627,5.8075266,122.47,122.41,3.29512523]
[1769410514126,2.5646418,122.46,122.41,3.29512523]
[1769410519542,2.56450974,122.46,122.41,3.29512523]
[1769410521339,5.80739454,122.47,122.41,3.29512523]
[1769410522146,2.56450974,122.46,122.41,3.29512523]
[1769410523539,5.99470428,122.46,122.41,3.29512523]
[1769410524539,3.43019454,122.48,122.41,3.29512523]
[1769410524846,5.99470428,122.48,122.42,3.3910708]
[1769410526042,2.56450974,122.47,122.42,3.3910708]
[1769410527442,5.99470428,122.48,122.42,3.3910708]
[1769410528538,2.56450974,122.47,122.42,3.3910708]
[1769410529748,5.99470428,122.48,122.42,3.3910708]
[1769410533150,2.56450974,122.47,122.42,3.3910708]
[1769410537358,3.34886593,122.5,122.42,7.3611]
[1769410537549,2.56450974,122.49,122.43,3.39165284]
[1769410537955,2.56450974,122.5,122.44,3.39165284]
[1769410538150,9.92060974,122.51,122.45,3.39165284]
[1769410538349,5.91337567,122.51,122.45,3.39165284]
[1769410538754,5.91337567,122.52,122.46,3.39165284]
[1769410538953,2.56450974,122.5,122.46,3.39165284]
[1769410539353,5.91337567,122.5,122.43,3.39165284]
[1769410539553,2.56450974,122.49,122.44,3.39165284]
[1769410540661,5.91337567,122.47,122.42,3.39165284]
[1769410542957,3.34886593,122.47,122.42,3.39165284]
[1769410543255,2.56450974,122.48,122.42,3.39165284]
[1769410543852,13.27057567,122.49,122.43,3.39165284]
[1769410544659,2.56450974,122.48,122.43,3.39165284]
[1769410547961,5.91337567,122.48,122.43,3.39165284]
[1769410548264,2.56450974,122.47,122.43,3.39165284]
[1769410551655,5.91337567,122.48,122.43,3.39165284]
[1769410552266,2.56450974,122.47,122.43,3.39165284]
[1769410552669,3.34886593,122.48,122.43,3.39165284]
[1769410552968,2.56450974,122.47,122.43,3.39165284]
[1769410555167,5.91337567,122.48,122.43,3.39165284]
[1769410556566,2.56450974,122.48,122.43,3.39165284]
[1769410558470,5.91337567,122.47,122.41,3.39165284]
[1769410558866,2.56450974,122.47,122.41,3.39165284]
[1769410559677,3.34886593,122.49,122.42,3.39165284]
[1769410559972,2.56450974,122.48,122.42,3.39165284]
[1769410561070,5.91337567,122.46,122.4,3.39165284]
[1769410561269,2.56450974,122.46,122.4,3.39165284]
[1769410561864,2.56450974,122.47,122.4,3.39165284]
[1769410562871,9.92290974,122.47,122.4,10.75405284]
[1769410563072,5.91337567,122.48,122.41,3.39165284]
[1769410563964,5.91337567,122.48,122.42,3.23993549]
[1769410564575,2.56450974,122.48,122.42,3.23993549]
[1769410565876,2.56450974,122.47,122.42,10.60103549]
[1769410566077,5.94096456,122.46,122.4,3.23993549]
[1769410566778,3.37645482,122.46,122.4,3.23993549]
[1769410566971,2.56450974,122.46,122.41,3.23993549]
[1769410569977,2.56450974,122.46,122.41,10.60173549]
[1769410570376,2.56450974,122.46,122.42,3.23993549]
[1769410570979,5.94096456,122.47,122.42,3.23993549]
[1769410572683,5.94096456,122.48,122.43,3.23993549]
[1769410573376,2.56450974,122.48,122.43,3.23993549]
[1769410573978,6.05166317,122.48,122.43,3.23993549]
[1769410576587,2.56450974,122.47,122.43,3.23993549]
[1769410576785,2.56450974,122.46,122.4,3.54636123]
[1769410576982,6.05166317,122.46,122.4,3.54636123]
[1769410577178,3.48715343,122.46,122.4,3.54636123]
[1769410578074,3.48715343,122.46,122.41,10.90816123]
[1769410578884,3.48715343,122.46,122.41,3.54636123]
[1769410579088,2.56450974,122.44,122.39,10.90886123]
[1769410580988,2.56450974,122.44,122.39,3.54636123]
[1769410581395,3.48715343,122.45,122.39,3.54636123]
[1769410581590,2.56525334,122.44,122.39,3.54636123]
[1769410582596,2.56525334,122.44,122.39,10.90936123]
[1769410584000,2.56525334,122.43,122.39,3.54636123]
[1769410585302,10.84665343,122.45,122.39,3.54636123]
[1769410585496,2.56525334,122.44,122.39,3.54636123]
[1769410587506,2.56525334,122.43,122.39,3.54636123]
[1769410587909,10.84665343,122.45,122.39,3.54636123]
[1769410588101,2.56525334,122.43,122.39,3.54636123]
[1769410588809,10.84665343,122.45,122.39,3.54636123]
[1769410589010,2.56525334,122.44,122.39,3.54636123]
[1769410589305,6.05240677,122.44,122.39,3.54636123]
[1769410589506,2.56525334,122.43,122.39,3.54636123]
[1769410589698,6.05240677,122.43,122.38,323.75873668]
[1769410589898,2.56525334,122.41,122.37,3.54636123]
[1769410590099,2.56525334,122.4,122.35,3.54636123]
[1769410590502,2.56525334,122.4,122.36,3.54636123]
[1769410590705,6.05240677,122.41,122.36,3.54636123]
[1769410592405,2.56525334,122.4,122.36,3.54636123]
[1769410592798,3.48715343,122.41,122.36,3.54636123]
[1769410593004,6.05240677,122.41,122.36,3.54636123]
[1769410593907,3.48715343,122.41,122.36,3.54636123]
[1769410594102,2.56525334,122.41,122.36,3.54636123]
[1769410594302,6.03096111,122.42,122.36,3.54636123]
[1769410595907,6.03096111,122.44,122.37,3.49971471]
[1769410596112,6.03096111,122.44,122.38,3.49971471]
[1769410598207,6.03096111,122.44,122.38,10.86331471]
[1769410599310,3.46570777,122.44,122.39,3.49971471]
[1769410599510,6.03096111,122.44,122.39,3.49971471]
[1769410600508,6.03096111,122.44,122.38,7.3636]
[1769410600713,2.56525334,122.43,122.38,7.3636]
[1769410601403,2.56525334,122.43,122.38,10.86331471]
[1769410602712,3.46570777,122.44,122.38,10.86331471]
[1769410602713,6.03096111,122.44,122.39,7.363]
[1769410603814,6.03096111,122.46,122.41,3.49971471]
[1769410604002,3.46570777,122.46,122.41,3.49971471]
[1769410606613,3.46570777,122.48,122.42,2.56525334]
[1769410606817,3.46570777,122.48,122.4,114.5243]
[1769410606818,6.03096111,122.5,122.44,3.49971471]
[1769410608108,3.46570777,122.5,122.44,3.49971471]
[1769410608314,2.56525334,122.49,122.44,3.49971471]
[1769410609015,6.03096111,122.5,122.44,3.49971471]
[1769410609610,3.46570777,122.49,122.44,3.49971471]
[1769410609811,6.03096111,122.49,122.44,3.49971471]
[1769410611218,3.46570777,122.48,122.42,3.49971471]
[1769410611416,6.03096111,122.47,122.42,3.49971471]
[1769410612318,3.46570777,122.47,122.42,3.49971471]
[1769410616318,3.46570777,122.47,122.42,10.86081471]
[1769410620320,3.46570777,122.47,122.42,3.49971471]
[1769410620528,3.46570777,122.46,122.4,6.06496805]
[1769410620723,3.46570777,122.46,122.41,3.49971471]
[1769410620919,2.56525334,122.47,122.41,3.49971471]
[1769410621120,3.46570777,122.47,122.41,3.49971471]
[1769410621323,6.03096111,122.47,122.41,3.49971471]
[1769410621625,3.46570777,122.46,122.41,3.49971471]
[1769410621821,3.46570777,122.44,122.39,3.49971471]
[1769410622027,6.03096111,122.44,122.39,3.49971471]
[1769410622928,3.46570777,122.44,122.39,3.49971471]
[1769410626523,5.84488057,122.45,122.39,3.49971471]
[1769410630031,3.27962723,122.45,122.39,10.86271471]
[1769410630231,3.27962723,122.45,122.4,3.36301432]
[1769410631631,5.84488057,122.45,122.4,3.36301432]
[1769410633434,3.27962723,122.45,122.4,3.36301432]
[1769410636740,2.56525334,122.46,122.41,3.36301432]
[1769410637442,6.10577945,122.46,122.41,3.36301432]
[1769410637638,2.56525334,122.47,122.42,3.43478729]
[1769410639236,6.10577945,122.48,122.42,10.79598729]
[1769410639542,6.10577945,122.48,122.43,3.43478729]
[1769410641238,3.54052611,122.48,122.43,3.43478729]
[1769410641436,7.357,122.5,122.44,3.43478729]
[1769410641437,3.54052611,122.5,122.44,3.43478729]